fUSD/lending_fUSD_20240518
["ID","MTS","AMOUNT","RATE_DAILY","PERIOD"]
[327376381,1716028255259,-500.0,0.00036164,9]
[327376382,1716028255268,-500.0,0.00036164,9]
[327376383,1716028255277,-500.0,0.00036164,9]
[327376384,1716028255286,-500.0,0.00036164,9]
[327376385,1716028255295,-2430.32,0.00036164,9]
[327376386,1716028255305,-500.0,0.00036164,9]
[327376387,1716028255314,-500.0,0.00036164,9]
[327376388,1716028255323,-974.37,0.00036164,9]
[327376389,1716028255332,-500.0,0.00036164,9]
[327376390,1716028255342,-500.0,0.00036164,9]
[327376391,1716028255351,-390.00972082,0.00036164,9]
[327376392,1716028255360,-151.0,0.00036164,7]
[327376393,1716028255369,-500.0,0.00036164,9]
[327376394,1716028255378,-3190.52,0.00036164,9]
[327376395,1716028255387,-500.0,0.00036164,9]
[327376396,1716028255396,-500.0,0.00036164,9]
[327376397,1716028255405,-500.0,0.00036164,9]
[327376398,1716028255414,-500.0,0.00036164,9]
[327376399,1716028255423,-500.0,0.00036164,9]
[327376400,1716028255432,-500.0,0.00036164,9]
[327376401,1716028255442,-500.0,0.00036164,9]
[327376402,1716028255451,-500.0,0.00036164,9]
[327376403,1716028255461,-500.0,0.00036164,9]
[327376404,1716028255470,-500.0,0.00036164,9]
[327376405,1716028255479,-500.0,0.00036164,9]
[327376406,1716028255488,-500.0,0.00036164,9]
[327376407,1716028255498,-151.0,0.00036164,7]
[327376408,1716028255508,-500.0,0.00036164,9]
[327376409,1716028255521,-500.0,0.00036164,9]
[327376410,1716028255530,-151.0,0.00036164,7]
[327376411,1716028255540,-500.0,0.00036164,9]
[327376412,1716028255550,-500.0,0.00036164,9]
[327376413,1716028255559,-500.0,0.00036164,9]
[327376414,1716028255569,-500.0,0.00036164,9]
[327376415,1716028255579,-500.0,0.00036164,9]
[327376416,1716028255589,-500.0,0.00036164,9]
[327376417,1716028255599,-151.0,0.00036164,7]
[327376418,1716028255608,-500.0,0.00036164,9]
[327376419,1716028255618,-500.0,0.00036164,9]
[327376420,1716028255627,-2895.82,0.00036164,9]
[327376421,1716028255637,-584.89010001,0.00036164,9]
[327376422,1716028255646,-151.0,0.00036164,7]
[327376423,1716028255656,-151.0,0.00036164,7]
[327376424,1716028255665,-500.0,0.00036164,9]
[327376425,1716028255674,-151.0,0.00036164,7]
[327376426,1716028255684,-500.0,0.00036164,9]
[327376427,1716028255694,-500.0,0.00036164,9]
[327376428,1716028255703,-500.0,0.00036164,9]
[327376429,1716028255713,-500.0,0.00036164,9]
[327376430,1716028255723,-2596.48,0.00036164,9]
[327376431,1716028255732,-500.0,0.00036164,9]
[327376432,1716028255742,-500.0,0.00036164,9]
[327376433,1716028255752,-3486.23,0.00036164,9]
[327376434,1716028255762,-500.0,0.00036164,9]
[327376435,1716028255771,-500.0,0.00036164,9]
[327376436,1716028255780,-500.0,0.00036164,9]
[327376437,1716028255790,-500.0,0.00036164,9]
[327376438,1716028255799,-500.0,0.00036164,9]
[327376439,1716028255808,-500.0,0.00036164,9]
[327376440,1716028255818,-500.0,0.00036164,9]
[327376441,1716028255828,-500.0,0.00036164,9]
[327376442,1716028255837,-500.0,0.00036164,9]
[327376443,1716028255846,-2556.9,0.00036164,9]
[327376444,1716028255856,-500.0,0.00036164,9]
[327376445,1716028255865,-500.0,0.00036164,9]
[327376446,1716028255874,-500.0,0.00036164,9]
[327376447,1716028255884,-500.0,0.00036164,9]
[327376448,1716028255894,-580.94,0.00036164,9]
[327376449,1716028255903,-500.0,0.00036164,9]
[327376450,1716028255912,-500.0,0.00036164,9]
[327376451,1716028255922,-500.0,0.00036164,9]
[327376452,1716028255931,-500.0,0.00036164,9]
[327376453,1716028255941,-500.0,0.00036164,9]
[327376454,1716028255951,-151.0,0.00036164,7]
[327376455,1716028255961,-500.0,0.00036164,9]
[327376456,1716028255971,-500.0,0.00036164,9]
[327376457,1716028255981,-500.0,0.00036164,9]
[327376458,1716028255991,-622.32176833,0.00036164,9]
[327376459,1716028256000,-500.0,0.00036164,9]
[327376460,1716028256010,-500.0,0.00036164,9]
[327376461,1716028256019,-500.0,0.00036164,9]
[327376462,1716028256029,-500.0,0.00036164,9]
[327376463,1716028256039,-500.0,0.00036164,9]
[327376464,1716028256048,-500.0,0.00036164,9]
[327376465,1716028256058,-511.88,0.00036164,9]
[327376466,1716028256068,-616.38,0.00036164,9]
[327376467,1716028256077,-500.0,0.00036164,9]
[327376468,1716028256086,-500.0,0.00036164,9]
[327376469,1716028256096,-500.0,0.00036164,9]
[327376470,1716028256105,-151.0,0.00036164,7]
[327376471,1716028256114,-537.08460891,0.00036164,9]
[327376472,1716028256124,-500.0,0.00036164,9]
[327376473,1716028256134,-500.0,0.00036164,9]
[327376474,1716028256144,-500.0,0.00036164,9]
[327376475,1716028256154,-560.79,0.00036164,9]
[327376476,1716028256163,-621.87,0.00036164,9]
[327376477,1716028256172,-500.0,0.00036164,9]
[327376478,1716028256182,-500.0,0.00036164,9]
[327376479,1716028256191,-500.0,0.00036164,9]
[327376480,1716028256200,-500.0,0.00036164,9]
[327376481,1716028256210,-211.03767881,0.00036164,9]
[327376482,1716028256219,-500.0,0.00036164,9]
[327376483,1716028256229,-500.0,0.00036164,9]
[327376484,1716028256238,-500.0,0.00036164,9]
[327376485,1716028256248,-500.0,0.00036164,9]
[327376486,1716028256258,-151.0,0.00036164,7]
[327376487,1716028256267,-431.45008112,0.00036164,9]
[327376488,1716028256276,-512.79934756,0.00036164,9]
[327376489,1716028256286,-500.0,0.00036164,9]
[327376490,1716028256295,-151.0,0.00036164,7]
[327376491,1716028256305,-156.8,0.00036164,9]
[327376492,1716028256314,-151.0,0.00036164,7]
[327376493,1716028256324,-193.491771,0.00036164,7]
[327376494,1716028256333,-500.0,0.00036164,9]
[327376495,1716028256342,-500.0,0.00036164,9]
[327376496,1716028256352,-500.0,0.00036164,9]
[327376497,1716028256361,-500.0,0.00036164,9]
[327376498,1716028256371,-193.491771,0.00036164,7]
[327376499,1716028256380,-500.0,0.00036164,9]
[327376500,1716028256389,-500.0,0.00036164,9]
[327376501,1716028256399,-500.0,0.00036164,9]
[327376502,1716028256409,-500.0,0.00036164,9]
[327376503,1716028256418,-500.0,0.00036164,9]
[327376504,1716028256428,-500.0,0.00036164,9]
[327376505,1716028256437,-500.0,0.00036164,9]
[327376506,1716028256447,-151.0,0.00036164,7]
[327376507,1716028256457,-500.0,0.00036164,9]
[327376508,1716028256466,-549.44661242,0.00036164,9]
[327376509,1716028256475,-500.0,0.00036164,9]
[327376510,1716028256484,-500.0,0.00036164,9]
[327376511,1716028256494,-500.0,0.00036164,9]
[327376512,1716028256504,-151.0,0.00036164,7]
[327376513,1716028256519,-153.589833,0.00036164,7]
[327376514,1716028256528,-500.0,0.00036164,9]
[327376515,1716028256539,-197.114358,0.00036164,7]
[327376516,1716028256548,-151.295525,0.00036164,7]
[327376517,1716028256559,-197.114358,0.00036164,7]
[327376518,1716028256569,-500.0,0.00036164,9]
[327376519,1716028256578,-2981.37,0.00036164,9]
[327376520,1716028256590,-151.0,0.00036164,7]
[327376521,1716028256599,-151.0,0.00036164,7]
[327376522,1716028256609,-151.0,0.00036164,2]
[327376523,1716028256618,-500.0,0.00036164,9]
[327376524,1716028256628,-236.36591141,0.00036164,9]
[327376525,1716028256638,-500.0,0.00036164,9]
[327376526,1716028256647,-500.0,0.00036164,9]
[327376527,1716028256656,-500.0,0.00036164,9]
[327376528,1716028256666,-500.0,0.00036164,9]
[327376529,1716028256676,-500.0,0.00036164,9]
[327376530,1716028256685,-4286.94,0.00036164,9]
[327376531,1716028256695,-151.0,0.00036164,7]
[327376532,1716028256704,-769.39,0.00036164,9]
[327376533,1716028256713,-500.0,0.00036164,9]
[327376534,1716028256723,-521.65516072,0.00036164,9]
[327376535,1716028256732,-500.0,0.00036164,9]
[327376536,1716028256742,-500.0,0.00036164,9]
[327376537,1716028256753,-151.0,0.00036164,7]
[327376538,1716028256762,-707.79,0.00036164,9]
[327376539,1716028256772,-1273.23,0.00036164,9]
[327376540,1716028256781,-500.0,0.00036164,9]
[327376541,1716028256791,-500.0,0.00036164,9]
[327376542,1716028256800,-500.0,0.00036164,9]
[327376543,1716028256810,-500.0,0.00036164,9]
[327376544,1716028256819,-500.0,0.00036164,9]
[327376545,1716028256828,-151.0,0.00036164,7]
[327376546,1716028256838,-151.0,0.00036164,7]
[327376547,1716028256847,-6139.62,0.00036164,9]
[327376548,1716028256856,-500.0,0.00036164,9]
[327376549,1716028256866,-500.0,0.00036164,9]
[327376550,1716028256876,-500.0,0.00036164,9]
[327376551,1716028256885,-151.0,0.00036164,7]
[327376552,1716028256896,-3372.38,0.00036164,9]
[327376553,1716028256905,-500.0,0.00036164,9]
[327376554,1716028256915,-500.0,0.00036164,9]
[327376555,1716028256924,-500.0,0.00036164,9]
[327376556,1716028256934,-151.0,0.00036164,7]
[327376557,1716028256943,-2727.14,0.00036164,9]
[327376558,1716028256953,-610.67,0.00036164,9]
[327376559,1716028256962,-500.0,0.00036164,9]
[327376560,1716028256971,-500.0,0.00036164,9]
[327376561,1716028256980,-2018.86,0.00036164,9]
[327376562,1716028256990,-318.81424618,0.00036164,9]
[327376563,1716028257001,-500.0,0.00036164,9]
[327376564,1716028257009,-500.0,0.00036164,9]
[327376565,1716028257018,-1064.87,0.00036164,9]
[327376566,1716028257028,-151.0,0.00036164,7]
[327376567,1716028257037,-500.0,0.00036164,9]
[327376568,1716028257047,-9617.9,0.00036164,9]
[327376569,1716028257056,-692.77,0.00036164,9]
[327376570,1716028257065,-500.0,0.00036164,9]
[327376571,1716028257074,-513.28,0.00036164,9]
[327376572,1716028257084,-348.250849,0.00036164,7]
[327376573,1716028257093,-742.95,0.00036164,9]
[327376574,1716028257102,-500.0,0.00036164,9]
[327376575,1716028257111,-500.0,0.00036164,9]
[327376576,1716028257121,-348.250849,0.00036164,7]
[327376577,1716028257130,-500.0,0.00036164,9]
[327376578,1716028257139,-277.58873044,0.00036164,9]
[327376579,1716028257149,-151.0,0.00036164,7]
[327376580,1716028257158,-151.0,0.00036164,7]
[327376581,1716028257168,-500.0,0.00036164,9]
[327376582,1716028257176,-560.43,0.00036164,9]
[327376583,1716028257186,-584.2,0.00036164,9]
[327376584,1716028257195,-500.0,0.00036164,9]
[327376585,1716028257204,-682.22,0.00036164,9]
[327376586,1716028257213,-500.0,0.00036164,9]
[327376587,1716028257223,-500.0,0.00036164,9]
[327376588,1716028257232,-2972.63,0.00036164,9]
[327376589,1716028257241,-151.0,0.00036164,7]
[327376590,1716028257252,-500.0,0.00036164,9]
[327376591,1716028257262,-1502.14,0.00036164,9]
[327376592,1716028257271,-8653.71,0.00036164,9]
[327376593,1716028257280,-151.0,0.00036164,7]
[327376594,1716028257289,-500.0,0.00036164,9]
[327376595,1716028257299,-500.0,0.00036164,9]
[327376596,1716028257308,-570.94598972,0.00036164,9]
[327376597,1716028257317,-500.0,0.00036164,9]
[327376598,1716028257327,-1060.73,0.00036164,9]
[327376599,1716028257336,-685.99,0.00036164,9]
[327376600,1716028257346,-4741.66,0.00036164,9]
[327376601,1716028257355,-500.0,0.00036164,9]
[327376602,1716028257365,-500.0,0.00036164,9]
[327376603,1716028257374,-500.0,0.00036164,9]
[327376604,1716028257383,-677.37,0.00036164,9]
[327376605,1716028257392,-500.0,0.00036164,9]
[327376606,1716028257401,-8143.51,0.00036164,9]
[327376607,1716028257410,-500.0,0.00036164,9]
[327376608,1716028257420,-593.37,0.00036164,9]
[327376609,1716028257429,-762.84,0.00036164,9]
[327376610,1716028257439,-151.0,0.00036164,7]
[327376611,1716028257449,-500.0,0.00036164,9]
[327376612,1716028257458,-3062.15,0.00036164,9]
[327376613,1716028257468,-976.37,0.00036164,9]
[327376614,1716028257477,-500.0,0.00036164,9]
[327376615,1716028257487,-317.14943534,0.00036164,9]
[327376616,1716028257496,-730.78,0.00036164,9]
[327376617,1716028257506,-8178.18,0.00036164,9]
[327376618,1716028257519,-176.472625,0.00036164,7]
[327376619,1716028257529,-627.20769837,0.00036164,9]
[327376620,1716028257538,-500.0,0.00036164,9]
[327376621,1716028257548,-176.472625,0.00036164,7]
[327376622,1716028257558,-500.0,0.00036164,9]
[327376623,1716028257567,-645.19,0.00036164,9]
[327376624,1716028257577,-572.268585,0.00036164,7]
[327376625,1716028257587,-500.0,0.00036164,9]
[327376626,1716028257596,-500.0,0.00036164,9]
[327376627,1716028257605,-694.27,0.00036164,9]
[327376628,1716028257615,-572.268585,0.00036164,7]
[327376629,1716028257623,-500.0,0.00036164,9]
[327376630,1716028257633,-500.0,0.00036164,9]
[327376631,1716028257642,-500.0,0.00036164,9]
[327376632,1716028257652,-500.0,0.00036164,9]
[327376633,1716028257661,-500.0,0.00036164,9]
[327376634,1716028257670,-630.7,0.00036164,9]
[327376635,1716028257679,-500.0,0.00036164,9]
[327376636,1716028257688,-151.0,0.00036164,7]
[327376637,1716028257697,-500.0,0.00036164,9]
[327376638,1716028257707,-874.9,0.00036164,9]
[327376639,1716028257716,-500.0,0.00036164,9]
[327376640,1716028257725,-500.0,0.00036164,9]
[327376641,1716028257734,-172.619762,0.00036164,7]
[327376642,1716028257744,-172.619762,0.00036164,7]
[327376643,1716028257756,-500.0,0.00036164,9]
[327376644,1716028257765,-2041.74,0.00036164,9]
[327376645,1716028257774,-500.0,0.00036164,9]
[327376646,1716028257783,-500.0,0.00036164,9]
[327376647,1716028257793,-1886.41,0.00036164,9]
[327376648,1716028257802,-500.0,0.00036164,9]
[327376649,1716028257812,-172.619762,0.00036164,7]
[327376650,1716028257822,-172.619762,0.00036164,7]
[327376651,1716028257833,-500.0,0.00036164,9]
[327376652,1716028257842,-151.0,0.00036164,7]
[327376653,1716028257851,-500.0,0.00036164,9]
[327376654,1716028257860,-500.0,0.00036164,9]
[327376655,1716028257870,-500.0,0.00036164,9]
[327376656,1716028257879,-2325.91,0.00036164,9]
[327376657,1716028257888,-500.0,0.00036164,9]
[327376658,1716028257897,-500.0,0.00036164,9]
[327376659,1716028257906,-610.76,0.00036164,9]
[327376660,1716028257916,-939.91,0.00036164,9]
[327376661,1716028257925,-500.0,0.00036164,9]
[327376662,1716028257934,-876.72,0.00036164,9]
[327376663,1716028257943,-630.24,0.00036164,9]
[327376664,1716028257952,-500.0,0.00036164,9]
[327376665,1716028257962,-500.0,0.00036164,9]
[327376666,1716028257971,-571.21101253,0.00036164,9]
[327376667,1716028257980,-500.0,0.00036164,9]
[327376668,1716028257989,-500.0,0.00036164,9]
[327376669,1716028257999,-500.0,0.00036164,9]
[327376670,1716028258007,-312.935147,0.00036164,7]
[327376671,1716028258017,-589.26,0.00036164,9]
[327376672,1716028258026,-312.935147,0.00036164,7]
[327376673,1716028258035,-1224.24,0.00036164,9]
[327376674,1716028258046,-652.79,0.00036164,9]
[327376675,1716028258055,-500.0,0.00036164,9]
[327376676,1716028258065,-312.935147,0.00036164,7]
[327376677,1716028258074,-312.935147,0.00036164,7]
[327376678,1716028258083,-3719.28,0.00036164,9]
[327376679,1716028258092,-151.0,0.00036164,7]
[327376680,1716028258102,-151.0,0.00036164,7]
[327376681,1716028258112,-151.0,0.00036164,7]
[327376682,1716028258122,-151.0,0.00036164,7]
[327376683,1716028258131,-500.0,0.00036164,9]
[327376684,1716028258140,-151.0,0.00036164,7]
[327376685,1716028258150,-500.0,0.00036164,9]
[327376686,1716028258162,-151.0,0.00036164,7]
[327376687,1716028258172,-500.0,0.00036164,9]
[327376688,1716028258181,-1724.33,0.00036164,9]
[327376689,1716028258190,-604.2,0.00036164,9]
[327376690,1716028258201,-1288.04,0.00036164,9]
[327376691,1716028258210,-500.0,0.00036164,9]
[327376692,1716028258221,-500.0,0.00036164,9]
[327376693,1716028258230,-500.0,0.00036164,9]
[327376694,1716028258239,-667.15,0.00036164,9]
[327376695,1716028258249,-500.0,0.00036164,9]
[327376696,1716028258258,-207.61821368,0.00036164,9]
[327376697,1716028258268,-500.0,0.00036164,9]
[327376698,1716028258277,-579.58,0.00036164,9]
[327376699,1716028258286,-500.0,0.00036164,9]
[327376700,1716028258295,-500.0,0.00036164,9]
[327376701,1716028258305,-500.0,0.00036164,9]
[327376702,1716028258314,-679.88,0.00036164,9]
[327376703,1716028258477,-691.22,0.00036164,9]
[327376704,1716028258487,-151.0,0.00036164,7]
[327376705,1716028258496,-500.0,0.00036164,9]
[327376706,1716028258507,-151.0,0.00036164,7]
[327376707,1716028258521,-500.0,0.00036164,9]
[327376708,1716028258530,-689.7,0.00036164,9]
[327376709,1716028258539,-151.0,0.00036164,7]
[327376710,1716028258548,-151.0,0.00036164,7]
[327376711,1716028258558,-3190.6,0.00036164,9]
[327376712,1716028258567,-868.93,0.00036164,9]
[327376713,1716028258576,-601.86,0.00036164,9]
[327376714,1716028258587,-151.0,0.00036164,7]
[327376715,1716028258596,-151.0,0.00036164,7]
[327376716,1716028258607,-500.0,0.00036164,9]
[327376717,1716028258618,-1297.1,0.00036164,9]
[327376718,1716028258627,-500.0,0.00036164,9]
[327376719,1716028258637,-538.69,0.00036164,9]
[327376720,1716028258646,-627.35,0.00036164,9]
[327376721,1716028258656,-513.29103904,0.00036164,9]
[327376722,1716028258667,-500.0,0.00036164,9]
[327376723,1716028258677,-774.19,0.00036164,9]
[327376724,1716028258687,-151.0,0.00036164,7]
[327376725,1716028258697,-151.0,0.00036164,7]
[327376726,1716028258706,-500.0,0.00036164,9]
[327376727,1716028258715,-512.89787826,0.00036164,9]
[327376728,1716028258724,-664.02,0.00036164,9]
[327376729,1716028258733,-500.0,0.00036164,9]
[327376730,1716028258742,-206.038816,0.00036164,7]
[327376731,1716028258753,-206.038816,0.00036164,7]
[327376732,1716028258762,-151.0,0.00036164,7]
[327376733,1716028258771,-206.038816,0.00036164,7]
[327376734,1716028258781,-500.0,0.00036164,9]
[327376735,1716028258790,-206.038816,0.00036164,7]
[327376736,1716028258799,-1844.6,0.00036164,9]
[327376737,1716028258809,-500.0,0.00036164,9]
[327376738,1716028258818,-507.08908695,0.00036164,9]
[327376739,1716028258827,-2010.6,0.00036164,9]
[327376740,1716028258837,-500.0,0.00036164,9]
[327376741,1716028258851,-559.605123,0.00036164,7]
[327376742,1716028258860,-559.605123,0.00036164,7]
[327376743,1716028258870,-151.0,0.00036164,7]
[327376744,1716028258879,-151.0,0.00036164,7]
[327376745,1716028258889,-500.0,0.00036164,9]
[327376746,1716028258898,-559.605123,0.00036164,7]
[327376747,1716028258907,-559.605123,0.00036164,7]
[327376748,1716028258917,-608.82782115,0.00036164,9]
[327376749,1716028258927,-151.0,0.00036164,7]
[327376750,1716028258936,-500.0,0.00036164,9]
[327376751,1716028258946,-151.0,0.00036164,7]
[327376752,1716028258955,-151.0,0.00036164,7]
[327376753,1716028258965,-500.0,0.00036164,9]
[327376754,1716028258975,-757.19,0.00036164,9]
[327376755,1716028258984,-151.0,0.00036164,7]
[327376756,1716028258994,-1881.91,0.00036164,9]
[327376757,1716028259005,-500.0,0.00036164,9]
[327376758,1716028259015,-2534.78,0.00036164,9]
[327376759,1716028259025,-151.0,0.00036164,7]
[327376760,1716028259034,-151.0,0.00036164,7]
[327376761,1716028259044,-500.0,0.00036164,9]
[327376762,1716028259053,-500.0,0.00036164,9]
[327376763,1716028259063,-500.0,0.00036164,9]
[327376764,1716028259073,-1097.44,0.00036164,9]
[327376765,1716028259083,-151.0,0.00036164,7]
[327376766,1716028259092,-500.0,0.00036164,9]
[327376767,1716028259102,-151.0,0.00036164,7]
[327376768,1716028259111,-155.465397,0.00036164,7]
[327376769,1716028259123,-679.77,0.00036164,9]
[327376770,1716028259132,-1162.29,0.00036164,9]
[327376771,1716028259142,-500.0,0.00036164,9]
[327376772,1716028259152,-500.0,0.00036164,9]
[327376773,1716028259161,-500.0,0.00036164,9]
[327376774,1716028259171,-827.2,0.00036164,9]
[327376775,1716028259181,-500.0,0.00036164,9]
[327376776,1716028259191,-500.0,0.00036164,9]
[327376777,1716028259200,-909.67,0.00036164,9]
[327376778,1716028259209,-1186.94,0.00036164,9]
[327376779,1716028259219,-509.20706774,0.00036164,9]
[327376780,1716028259228,-157.663853,0.00036164,7]
[327376781,1716028259238,-500.0,0.00036164,9]
[327376782,1716028259249,-746.96,0.00036164,9]
[327376783,1716028259259,-792.07,0.00036164,9]
[327376784,1716028259268,-500.0,0.00036164,9]
[327376785,1716028259277,-1111.77,0.00036164,9]
[327376786,1716028259287,-500.0,0.00036164,9]
[327376787,1716028259297,-151.0,0.00036164,7]
[327376788,1716028259307,-151.0,0.00036164,7]
[327376789,1716028259316,-500.0,0.00036164,9]
[327376790,1716028259326,-846.79,0.00036164,9]
[327376791,1716028259335,-955.59,0.00036164,9]
[327376792,1716028259345,-500.0,0.00036164,9]
[327376793,1716028259354,-853.23,0.00036164,9]
[327376794,1716028259364,-941.63,0.00036164,9]
[327376795,1716028259374,-151.0,0.00036164,7]
[327376796,1716028259383,-151.0,0.00036164,7]
[327376797,1716028259393,-998.74,0.00036164,9]
[327376798,1716028259402,-151.0,0.00036164,7]
[327376799,1716028259412,-151.0,0.00036164,7]
[327376800,1716028259421,-500.0,0.00036164,9]
[327376801,1716028259430,-534.96,0.00036164,9]
[327376802,1716028259440,-828.719789,0.00036164,7]
[327376803,1716028259450,-828.719789,0.00036164,7]
[327376804,1716028259460,-500.0,0.00036164,9]
[327376805,1716028259470,-551.91,0.00036164,9]
[327376806,1716028259479,-687.72,0.00036164,9]
[327376807,1716028259488,-500.0,0.00036164,9]
[327376808,1716028259498,-828.719789,0.00036164,7]
[327376809,1716028259509,-828.719789,0.00036164,7]
[327376810,1716028259523,-500.0,0.00036164,9]
[327376811,1716028259532,-500.0,0.00036164,9]
[327376812,1716028259542,-500.0,0.00036164,9]
[327376813,1716028259551,-500.0,0.00036164,9]
[327376814,1716028259563,-500.0,0.00036164,9]
[327376815,1716028259572,-574.13,0.00036164,9]
[327376816,1716028259581,-500.0,0.00036164,9]
[327376817,1716028259594,-165.014983,0.00036164,7]
[327376818,1716028259603,-165.014983,0.00036164,7]
[327376819,1716028259613,-500.0,0.00036164,9]
[327376820,1716028259622,-617.42,0.00036164,9]
[327376821,1716028259631,-500.0,0.00036164,9]
[327376822,1716028259641,-500.0,0.00036164,9]
[327376823,1716028259651,-500.0,0.00036164,9]
[327376824,1716028259662,-500.0,0.00036164,9]
[327376825,1716028259676,-151.0,0.00036164,7]
[327376826,1716028259685,-859.9,0.00036164,9]
[327376827,1716028259695,-500.0,0.00036164,9]
[327376828,1716028259704,-516.66607573,0.00036164,9]
[327376829,1716028259715,-151.0,0.00036164,7]
[327376830,1716028259725,-165.014983,0.00036164,7]
[327376831,1716028259735,-151.0,0.00036164,7]
[327376832,1716028259749,-165.014983,0.00036164,7]
[327376833,1716028259769,-151.0,0.00036164,7]
[327376834,1716028259778,-687.14,0.00036164,9]
[327376835,1716028259788,-500.0,0.00036164,9]
[327376836,1716028259798,-151.0,0.00036164,7]
[327376837,1716028259808,-151.0,0.00036164,7]
[327376838,1716028259818,-500.0,0.00036164,9]
[327376839,1716028259828,-500.0,0.00036164,9]
[327376840,1716028259837,-500.0,0.00036164,9]
[327376841,1716028259846,-500.0,0.00036164,9]
[327376842,1716028259856,-151.0,0.00036164,7]
[327376843,1716028259865,-500.0,0.00036164,9]
[327376844,1716028259875,-1047.56,0.00036164,9]
[327376845,1716028259884,-153.184556,0.00036164,7]
[327376846,1716028259893,-3747.21,0.00036164,9]
[327376847,1716028259903,-543.16,0.00036164,9]
[327376848,1716028259913,-832.05,0.00036164,9]
[327376849,1716028259922,-1569.18,0.00036164,9]
[327376850,1716028259932,-3974.37,0.00036164,9]
[327376851,1716028259942,-3455.46,0.00036164,9]
[327376852,1716028259951,-295.927164,0.00036164,7]
[327376853,1716028259961,-295.927164,0.00036164,7]
[327376854,1716028259970,-500.0,0.00036164,9]
[327376855,1716028259979,-500.0,0.00036164,9]
[327376856,1716028259989,-130.98245606,0.00036164,9]
[327376857,1716028260063,-369.01754394,0.00036164,9]
[327376858,1716028260073,-500.0,0.00036164,9]
[327376859,1716028260084,-29.05731374,0.00036164,9]
[327376860,1716028260492,-500.0,0.00035616,9]
[327376861,1716028260503,-502.92271934,0.00035616,9]
[327376862,1716028260516,-500.0,0.0003589,9]
[327376863,1716028260526,-236.8300679,0.00036164,9]
[327376864,1716028260537,-500.0,0.00036164,9]
[327376865,1716028260548,-295.927164,0.00036164,7]
[327376866,1716028260559,-295.927164,0.00036164,7]
[327376867,1716028260569,-151.0,0.00036164,7]
[327376868,1716028260578,-819.63,0.00036164,9]
[327376869,1716028260591,-500.0,0.00036164,9]
[327376870,1716028260601,-500.0,0.00036164,9]
[327376871,1716028260610,-500.0,0.00036164,9]
[327376872,1716028260620,-787.6,0.00036164,9]
[327376873,1716028260630,-500.0,0.00036164,2]
[327376874,1716028260640,-460.06174985,0.00036164,9]
[327376875,1716028260657,-500.0,0.00035616,9]
[327376876,1716028260666,-39.93825015,0.00036164,9]
[327376877,1716028260677,-572.98937409,0.00036164,9]
[327376878,1716028260687,-510.11309487,0.00036164,9]
[327376879,1716028260697,-500.0,0.00036164,9]
[327376880,1716028260707,-151.0,0.00036164,7]